Workbook

Sheet от 1года до 3 лет
A1: Утверждаю | H1: Согласовано
A2: Директор ООО "ФУДСОЦСЕРВИС" | H2: Руководитель дошкольной образовательной
A3: Харламова Э.Р. | H3: организации
E6: Примерное 10-дневное меню
E7: для организации питания детей в дошкольных учреждениях
E8: с 8-10,5- часовым пребыванием от 1 года до 3 лет
A10: День 1 - ый
A11: Наименование блюд и | C11: Масса | D11: Кол - во | E11: Кол - во | F11: Пищевые вещества | I11: Энергетическая | J11: витамин | K11: Сборник
A12: продуктов | C12: порции | D12: (в гр ) | E12: (в гр ) | I12: ценность | K12: рецептур
D13: брутто | E13: нетто | F13: белки | G13: жиры | H13: угл-ды | I13: Ккал | J13: С
B14: ЗАВТРАК
A15: Каша "Дружба" молочная с маслом сливочным | C15: 140/3 | F15: 4.22 | G15: 4.92 | H15: 23.38 | I15: 155.56 | J15: 0.60 | K15: ТТК №7Д
B16: Крупа рисовая | D16: 10.00 | E16: 10.00
B17: Крупа пшенная | D17: 7.50 | E17: 7.50
B18: Молоко | D18: 75.00 | E18: 75.00
B19: Вода | D19: 48.00 | E19: 48.00
B20: Сахар | D20: 2.00 | E20: 2.00
B21: соль иодированная | D21: 0.40 | E21: 0.40
B22: Масло сливочное | D22: 3.00 | E22: 3.00
A23: Кофейный напиток с молоком | C23: 180/6 | F23: 2.85 | G23: 2.41 | H23: 10.35 | I23: 74.58 | J23: 1.17 | K23: №414 Дели 2016
B24: Кофейный напиток | D24: 2.50 | E24: 2.50
B25: Сахар | D25: 6.00 | E25: 6.00
B26: Молоко | D26: 90.00 | E26: 90.00
B27: Вода | D27: 108.00 | E27: 108.00
A28: Бутерброд с сыром, маслом сливочным | C28: 25/5/5 | F28: 2.53 | G28: 5.69 | H28: 12.92 | I28: 115.67 | J28: 0.07 | K28: №3 сб дошк 2016
B29: Батон нарезной | D29: 25.00 | E29: 25.00
B30: Сыр | D30: 5.10 | E30: 5.00
B31: Масло сливочное | D31: 5.00 | E31: 5.00
A32: Итого: | C32: 364 | F32: =F28+F23+F15 -> 9.60 | G32: =G28+G23+G15 -> 13.02 | H32: 46.65 | I32: 345.81 | J32: 1.84
B33: 2 - ой ЗАВТРАК
A34: Кисломолочный напиток | C34: 150/2 | F34: 4.35 | G34: 3.75 | H34: 8.00 | I34: 83.00 | J34: 1.05 | K34: №420 Сб дошк 2016
A35: (Кефир,ряженка,катык) | B35: кисломолочный напиток | D35: 155 | E35: 150
B36: сахар | D36: 2 | E36: 2
A37: Итого: | C37: 152 | F37: =F34 -> 4.35 | G37: =G34 -> 3.75 | H37: =H34 -> 8.00 | I37: =I34 -> 83.00 | J37: =J34 -> 1.05
B38: ОБЕД
A39: Салат из свежей (ранней) капусты с морковью | C39: 40 | F39: 0.56 | G39: 2.03 | H39: 3.61 | I39: 34.96 | J39: 12.98 | K39: №21 сб дошк Дели2016
B40: капуста свежая б/к | D40: 41.60 | E40: 33.30
B41: масса прогретой капусты | E41: 30.00
B42: морковь | D42: 8.75 | E42: 7.00
B43: соль иодированная | D43: 0.40 | E43: 0.40
B44: сахарный песок | D44: 2.00 | E44: 2.00
B45: масло растительное | D45: 2.00 | E45: 2.00
A46: Суп вермишелевый с картофелем с мясными фрикадельками | C46: 150/10 | F46: 3.61 | G46: 2.87 | H46: 10.55 | I46: 90.56 | J46: 5.19 | K46: №88 СБ дошк 2016
B47: говядина (котлетное мясо) | D47: 11.97 | E47: 11.40
B48: или фарш говяжий | D48: 11.97 | E48: 11.40
B49: Лук репчатый | D49: 1.19 | E49: 1.00
B50: Яйцо | D50: 0.96 | E50: 0.80
B51: Вода для фарша | D51: 1.00 | E51: 1.00
B52: соль иодированная | D52: 0.10 | E52: 0.10
B53: масса полуфабриката фрикаделек | E53: 14.3
B54: масса готовых фрикаделек | E54: 10
B55: Картофель | D55: 59.90 | E55: 45.00
B56: Морковь | D56: 7.50 | E56: 6.00
B57: Лук репчатый | D57: 7.14 | E57: 6.00
B58: вермишель | D58: 6.00 | E58: 6.00
B59: Масло растительное | D59: 3.00 | E59: 3.00
B60: соль иодированная | D60: 0.50 | E60: 0.50
B61: Вода | D61: 105.00 | E61: 105.00
A62: Котлеты рубленые из говядины | C62: 50 | F62: 8.42 | G62: 9.35 | H62: 8.22 | I62: 150.76 | K62: СБ дошкольн. №299, 2016
B63: говядина (котлетное мясо) | D63: 36.57 | E63: 35.00
B64: или фарш говяжий | D64: 36.57 | E64: 35.00
B65: Лук репчатый | D65: 10.40 | E65: 8.75
B66: Хлеб пшеничный | D66: 8.13 | E66: 8.13
B67: вода питьевая | D67: 10.00 | E67: 10.00
B68: сухари панировочные | D68: 2.80 | E68: 2.80
B69: соль иодированная | D69: 0.40 | E69: 0.40
B70: масса полуфабриката | E70: 62.00
B71: масло растительное | D71: 0.60 | E71: 0.60
A72: Пюре Картофельное | C72: 120 | F72: 2.45 | G72: 3.84 | H72: 16.35 | I72: 109.80 | J72: 14.53 | K72: №339 СБ дошк 2016
B73: Картофель | D73: 136.80 | E73: 102.60
B74: Молоко | D74: 18.96 | E74: 18.00
B75: Масло сливочное | D75: 4.20 | E75: 4.20
B76: соль иодированная | D76: 0.45 | E76: 0.45
A77: Напиток из сухофруктов | C77: 150 | F77: 0.50 | G77: 0.07 | H77: 14.00 | I77: 60 | J77: 0.54 | K77: №394 Сб дошк 2016
B78: сухофрукты | D78: 12.75 | E78: 12.50
B79: Сахар | D79: 5.00 | E79: 5.00
B80: вода | D80: 152.00 | E80: 152.00
A81: Хлеб пшеничный | C81: 15 | D81: 15.00 | E81: 15.00 | F81: 1.14 | G81: 0.12 | H81: 7.38 | I81: 35.25 | J81: 0.00 | K81: табл 6 стр 134, Дели +, 2012
A82: Хлеб ржаной | C82: 35 | D82: 35 | E82: 35 | F82: 2.31 | G82: 0.42 | H82: 13.85 | I82: 69.23 | K82: табл 6 стр 144, Дели +, 2012
A83: Итого: | C83: =C82+C81+C77+C72+C62+150+10+C39 -> 570 | F83: =F82+F81+F77+F72+F62+F46+F39 -> 18.99 | G83: =G82+G81+G77+G72+G62+G46+G39 -> 18.70 | H83: 73.96 | I83: 550.56 | J83: 33.24
B84: ПОЛДНИК
A85: Булочка дорожная | C85: 35 | F85: 2.73 | G85: 4.90 | H85: 18.25 | I85: 126.70 | K85: №453 сб дошк 2016
B86: Мука пшеничная | D86: 21.35 | E86: 21.00
B87: мука пшеничная на подпыл | D87: 0.70 | E87: 0.70
B88: Сахар | D88: 4.20 | E88: 4.20
B89: Масло сливочное | D89: 4.55 | E89: 4.55
B90: соль иодированная | D90: 0.21 | E90: 0.21
B91: дрожжи сухие | D91: 0.14 | E91: 0.14
B92: вода | D92: 10.70 | E92: 10.70
B93: масса полуфабриката | E93: 39.90
B94: для крошки:
B95: мука пшеничная | D95: 0.84 | E95: 0.84
B96: масло сливочное | D96: 0.70 | E96: 0.70
B97: масса крошки | E97: 1.40
B98: масло растительное для смазки изделй | D98: 0.70 | E98: 0.70
A99: Чай с сахаром | C99: 150/5 | F99: 0.06 | G99: 0.02 | H99: 5.01 | I99: 19.95 | J99: 0.03 | K99: №410, 411 Дели 2016
B100: чай весовой | D100: 0.4 | E100: 0.4
B101: Сахар | D101: 5 | E101: 5
B102: Вода | D102: 150 | E102: 150
A103: Фрукты свежие | C103: 100 | D103: 100 | E103: 100 | F103: 0.40 | G103: 0.40 | H103: 9.80 | I103: 47.00 | J103: 10.00 | K103: №386 СБ
A104: (яблоки,или апельсин, или банан,или мандарин) | K104: дошк.2016
A105: Итого: | C105: 290 | F105: =F103+F99+F85 -> 3.19 | G105: =G103+G99+G85 -> 5.32 | H105: 33.06 | I105: 193.65 | J105: 10.03
A106: ВСЕГО: | C106: =C32+C37+C83+C105 -> 1376 | F106: =F32+F37+F83+F105 -> 36.13 | G106: =G32+G37+G83+G105 -> 40.79 | H106: =H32+H37+H83+H105 -> 161.67 | I106: =I32+I37+I83+I105 -> 1173.02 | J106: =J32+J37+J83+J105 -> 46.16
A108: День 2- ой
A109: Наименование блюд и | C109: Масса | D109: Кол - во | E109: Кол - во | F109: Пищевые вещества | I109: Энергетическая | J109: Витамин | K109: Сборник
A110: продуктов | C110: порции | D110: (в гр ) | E110: (в гр ) | I110: ценность | K110: рецептур
D111: брутто | E111: нетто | F111: белки | G111: жиры | H111: угл-ды | I111: Ккал | J111: С
B112: ЗАВТРАК
A113: Каша полбяная молочная с маслом сливочным | C113: 140/3 | F113: 3.76 | G113: 6.13 | H113: 22.96 | I113: 162.00 | J113: 0.67 | K113: ТТК №1Д
B114: Крупа полбяная | D114: 18 | E114: 18
B115: Молоко | D115: 70 | E115: 70
B116: вода | D116: 53 | E116: 53
B117: Сахар | D117: 2 | E117: 2
B118: соль иодированная | D118: 0.4 | E118: 0.4
B119: Масло сливочное | D119: 3 | E119: 3
A120: Какао с молоком | C120: 180/6 | F120: 3.67 | G120: 3.19 | H120: 10.87 | I120: 90.78 | J120: 1.43 | K120: №416 Дели 2016
B121: Какао-порошок | D121: 2.00 | E121: 2.00
B122: Сахар | D122: 6.00 | E122: 6.00
B123: Молоко | D123: 110.00 | E123: 110.00
B124: Вода | D124: 80.00 | E124: 80.00
A125: Бутерброд с маслом сливочным | C125: 25/5 | F125: 1.92 | G125: 4.36 | H125: 12.92 | I125: 98.50 | K125: №1 Дели 2016
B126: Батон нарезной | D126: 25 | E126: 25
B127: Масло сливочное | D127: 5 | E127: 5
A128: Итого: | C128: 359 | F128: =F125+F120+F113 -> 9.35 | G128: =G125+G120+G113 -> 13.67 | H128: =H125+H120+H113 -> 46.75 | I128: =I125+I120+I113 -> 351.28 | J128: =J125+J120+J113 -> 2.10
B129: 2 - ой ЗАВТРАК
A130: Сок (нектар) в инд упаковке | C130: 200 | D130: 200 | E130: 200 | F130: 1.00 | H130: 20.20 | I130: 84.44 | J130: 4.00 | K130: №418 Дели 2016
A131: Итого: | C131: 200 | F131: =F130 -> 1.00 | G131: =G130 -> 0.00 | H131: =H130 -> 20.20 | I131: =I130 -> 84.44 | J131: =J130 -> 4.00
B132: ОБЕД
A133: Томаты свежие порционно | C133: 30 | F133: 0.33 | G133: 0.06 | H133: 1.14 | I133: 6.6 | J133: 5.25 | K133: №71, сб шк 2017
B134: томаты свежие | D134: 30.6 | E134: 30
A135: Борщ со свежей капустой, картофелем на курином бульоне, со сметаной | C135: 150/5 | F135: 1.26 | G135: 4.00 | H135: 6.81 | I135: 73.58 | J135: 6.43 | K135: №63, сб дошк 2016
B136: Капуста свежая | D136: 15.0 | E136: 12.0
B137: Картофель | D137: 15.96 | E137: 12.0
B138: Морковь | D138: 7.5 | E138: 6.0
B139: Лук репчатый | D139: 7.14 | E139: 6.0
B140: Свекла | D140: 30.72 | E140: 24.0
B141: Сахар | D141: 1.8 | E141: 1.8
B142: Масло растительное | D142: 3.0 | E142: 3.0
B143: соль иодированная | D143: 0.5 | E143: 0.5
B144: Бульон | D144: 120 | E144: 120.0
B145: Сметана | D145: 5.0 | E145: 5.0
B146: Томатная паста | D146: 0.8 | E146: 0.8
A147: Плов из отварной птицы | C147: 150 | F147: 12.71 | G147: 7.85 | H147: 26.80 | I147: 229.00 | J147: 4.52 | K147: №321 сб дошк 2016
B148: цыплята-бройлеры с/м | D148: 58.50 | E148: 55.2
B149: масса отварной птицы | E149: 24.0
B150: масло сливочное | D150: 5.0 | E150: 5.0
B151: Лук репчатый | D151: 8.9 | E151: 7.5
B152: Морковь | D152: 12.5 | E152: 10.0
B153: Крупа рисовая | D153: 32.0 | E153: 32.0
B154: вода | D154: 65.0 | E154: 65.0
B155: соль иодированная | D155: 0.5 | E155: 0.5
B156: масса гарнира | E156: 126.0
A157: Компот из свежих яблок | C157: 150 | F157: 0.12 | G157: 0.12 | H157: 20.91 | I157: 85.95 | J157: 2.85 | K157: №342 сб шк 2017
B158: яблоки свежие | D158: 28.50 | E158: 25.00
B159: сахар | D159: 5.00 | E159: 5.00
B160: вода | D160: 152.00 | E160: 152.00
A161: Хлеб пшеничный | C161: 20 | D161: 20 | E161: 20 | F161: 1.52 | G161: 0.16 | H161: 9.84 | I161: 47.00 | J161: 0.00 | K161: табл 6 стр 134, Дели +, 2012
A162: Хлеб ржаной | C162: 35 | D162: 35 | E162: 35 | F162: 2.31 | G162: 0.42 | H162: 13.85 | I162: 69.23 | K162: табл 6 стр 144, Дели +, 2012
A163: Итого: | C163: =C162+C161+C157+C147+155+C133 -> 540 | F163: =F162+F161+F157+F147+F135+F133 -> 18.25 | G163: =G162+G161+G157+G147+G135+G133 -> 12.61 | H163: 79.34 | I163: 511.36 | J163: 19.05
B164: ПОЛДНИК
A165: Запеканка творожная с молоком сгущенным | C165: 110/20 | F165: 20.73 | G165: 16.98 | H165: 29.49 | I165: 353.40 | J165: 0.49 | K165: №251 сб дошк 2016
B166: Творог | D166: 103.2 | E166: 101.2
B167: крупа манная | D167: 6.6 | E167: 6.6
B168: Яйцо | D168: 5.28 | E168: 4.4
B169: Сахар | D169: 8.8 | E169: 8.8
B170: Сметана | D170: 4.4 | E170: 4.4
B171: Масло сливочное | D171: 4.4 | E171: 4.4
B172: Сухари панировочные | D172: 4.4 | E172: 4.4
B173: соль иодированная | D173: 0.55 | E173: 0.55
B174: молоко сгущенное | D174: 20.40 | E174: 20.00
A175: Чай с сахаром и лимоном | C175: 150/5/5 | F175: 0.10 | G175: 0.02 | H175: 5.18 | I175: 21.78 | J175: 2.24 | K175: №412 Дели 2016
B176: чай весовой | D176: 0.4 | E176: 0.4
B177: Сахар | D177: 5 | E177: 5
B178: лимон | D178: 5.55 | E178: 5
B179: Вода | D179: 150.0 | E179: 150.0
A180: Итого: | C180: 290 | F180: =F175+F165 -> 20.83 | G180: =G175+G165 -> 17.00 | H180: =H175+H165 -> 34.67 | I180: =I175+I165 -> 375.18 | J180: =J175+J165 -> 2.73
A181: ВСЕГО: | C181: =C128+C131+C163+C180 -> 1389 | F181: =F128+F131+F163+F180 -> 49.43 | G181: =G128+G131+G163+G180 -> 43.28 | H181: =H128+H131+H163+H180 -> 180.96 | I181: =I128+I131+I163+I180 -> 1322.26 | J181: =J128+J131+J163+J180 -> 27.88
A183: День 3 - ий
A184: Наименование блюд и | C184: Масса | D184: Кол - во | E184: Кол - во | F184: Пищевые вещества | I184: Энергетическая | J184: Витамин | K184: Сборник
A185: продуктов | C185: порции | D185: (в гр ) | E185: (в гр ) | I185: ценность | K185: рецептур
D186: брутто | E186: нетто | F186: белки | G186: жиры | H186: угл-ды | I186: Ккал | J186: С
B187: ЗАВТРАК
A188: Каша ячневая молочная с маслом сливочным | C188: 140/4 | F188: 4.71 | G188: 5.52 | H188: 23.38 | I188: 178.07 | K188: ТТК №10Д
B189: Крупа ячневая | D189: 17.5 | E189: 17.5
B190: Молоко | D190: 70 | E190: 70
B191: Вода | D191: 53 | E191: 53
B192: Сахар | D192: 2 | E192: 2
B193: соль иодированная | D193: 0.4 | E193: 0.4
B194: Масло сливочное | D194: 4 | E194: 4
A195: Чай с молоком, сахаром | C195: 180/6 | F195: 3.03 | G195: 2.40 | H195: 10.48 | I195: 75.76 | J195: 1.38 | K195: №413 сб дошк 2016
B196: чай весовой | D196: 0.45 | E196: 0.45
B197: Сахар | D197: 6 | E197: 6
B198: Молоко | D198: 92 | E198: 90
B199: Вода | D199: 90 | E199: 90
A200: Бутерброд с маслом сливочным | C200: 25/5 | F200: 1.92 | G200: 4.36 | H200: 12.92 | I200: 98.50 | K200: №1 Дели 2016
B201: Батон нарезной | D201: 25 | E201: 25
B202: Масло сливочное | D202: 5 | E202: 5
A203: Итого: | C203: 360 | F203: =F200+F195+F188 -> 9.66 | G203: =G200+G195+G188 -> 12.27 | H203: =H200+H195+H188 -> 46.78 | I203: =I200+I195+I188 -> 352.33 | J203: =J200+J195+J188 -> 1.38
B204: 2 - ой ЗАВТРАК
A205: Кисломолочный напиток | C205: 150 | F205: 4.35 | G205: 3.75 | H205: 6.30 | I205: 76.00 | J205: 0.45 | K205: №420 Сб дошк 2016
... 724 more rows

Sheet от 3 до 7 лет
A1: Утверждаю | H1: Согласовано
A2: Директор ООО "ФУДСОЦСЕРВИС" | H2: Руководитель дошкольной образовательной
A3: Харламова Э.Р. | H3: организации
C5: Примерное 10-дневное меню
C6: для организации питания детей в дошкольных учреждениях
C7: с 8 - 10,5 часовым пребыванием от 3 до 7 лет
A9: День 1 - ый
A10: Наименование блюд и | C10: Масса | D10: Кол - во | E10: Кол - во | F10: Пищевые вещества | I10: Энергетическая | J10: Витамин | K10: Сборник рецептур
A11: продуктов | C11: порции | D11: (в гр ) | E11: (в гр ) | I11: ценность
D12: брутто | E12: нетто | F12: белки | G12: жиры | H12: угл-ды | I12: Ккал | J12: С
B13: ЗАВТРАК
A14: Каша "Дружба" молочная с маслом сливочным | C14: 180/5 | F14: 5.36 | G14: 9.85 | H14: 29.49 | I14: 229.05 | J14: 0.86 | K14: ТТК №7Д
B15: Крупа рисовая | D15: 13.50 | E15: 13.50
B16: Крупа пшенная | D16: 10.00 | E16: 10.00
B17: Молоко | D17: 90.00 | E17: 90.00
B18: Вода | D18: 68.00 | E18: 68.00
B19: Сахар | D19: 2.50 | E19: 2.50
B20: соль иодированная | D20: 0.50 | E20: 0.50
B21: Масло сливочное | D21: 5 | E21: 5
A22: Кофейный напиток с молоком | C22: 180/6 | F22: 2.85 | G22: 2.41 | H22: 10.35 | I22: 74.58 | J22: 1.17 | K22: №414 Дели 2016
B23: Кофейный напиток | D23: 2.50 | E23: 2.50
B24: Сахар | D24: 6.00 | E24: 6.00
B25: Молоко | D25: 90.00 | E25: 90.00
B26: Вода | D26: 108.00 | E26: 108.00
A27: Бутерброд с сыром, маслом сливочным | C27: 30/5/5 | F27: 3.61 | G27: 5.83 | H27: 15.49 | I27: 128.77 | J27: 0.07 | K27: №3 сб дошк 2016
B28: Батон нарезной | D28: 30.00 | E28: 30.00
B29: Сыр | D29: 5.10 | E29: 5.00
B30: Масло сливочное | D30: 5.00 | E30: 5.00
A31: Итого: | C31: 411 | F31: =SUM(F14:F30) -> 11.82 | G31: =SUM(G14:G30) -> 18.09 | H31: =SUM(H14:H30) -> 55.33 | I31: =SUM(I14:I30) -> 432.40 | J31: =SUM(J14:J30) -> 2.10
B32: 2 - ой ЗАВТРАК
A33: Кисломолочный напиток | C33: 180/3 | F33: 5.22 | G33: 4.50 | H33: 10.19 | I33: 102.00 | J33: 1.26 | K33: №420 СБ дошк 2016
A34: (Кефир,ряженка,катык) | B34: кисломолочный напиток | D34: 185.00 | E34: 180.00
B35: сахар | D35: 3.00 | E35: 3.00
A36: Итого: | C36: 183 | F36: =F33 -> 5.22 | G36: =G33 -> 4.50 | H36: =H33 -> 10.19 | I36: =I33 -> 102.00 | J36: =J33 -> 1.26
B37: ОБЕД
A38: Салат из свежей (ранней) капусты с морковью | C38: 60 | F38: 0.84 | G38: 3.05 | H38: 5.41 | I38: 52.44 | J38: 19.47 | K38: №21 сб дошк Дели2016
B39: капуста свежая б/к | D39: 62.50 | E39: 50.00
B40: масса прогретой капусты | E40: 45.00
B41: морковь | D41: 12.50 | E41: 10.00
B42: соль иодированная | D42: 0.60 | E42: 0.60
B43: сахарный песок | D43: 3.00 | E43: 3.00
B44: масло растительное | D44: 3.00 | E44: 3.00
A45: Суп вермишелевый с картофелем с мясными фрикадельками | C45: 180/10 | F45: 4.93 | G45: 3.80 | H45: 12.68 | I45: 114.56 | J45: 6.18 | K45: №88, сб дошк 2016
B46: говядина (котлетное мясо) | D46: 11.97 | E46: 11.40
B47: или фарш говяжий | D47: 11.97 | E47: 11.40
B48: Лук репчатый | D48: 1.19 | E48: 1.00
B49: Яйцо | D49: 0.96 | E49: 0.80
B50: Вода для фарша | D50: 1.00 | E50: 1.00
B51: соль иодированная | D51: 0.10 | E51: 0.10
B52: Масса полуфабриката | E52: 14.30
B53: масса готовых фрикаделек | E53: 10.00
B54: Картофель | D54: 79.80 | E54: 60.00
B55: Морковь | D55: 10.00 | E55: 8.00
B56: Лук репчатый | D56: 9.52 | E56: 8.00
B57: вермишель | D57: 8.00 | E57: 8.00
B58: Масло растительное | D58: 4.00 | E58: 4.00
B59: соль иодированная | D59: 0.70 | E59: 0.70
B60: Вода | D60: 140.00 | E60: 140.00
A61: Котлеты рубленые из говядины | C61: 70 | F61: 11.79 | G61: 13.09 | H61: 11.51 | I61: 211.06 | J61: 0.84 | K61: СБ дошкольн. №299, 2016
B62: говядина (котлетное мясо) | D62: 51.16 | E62: 49.00
B63: или фарш говяжий | D63: 51.16 | E63: 49.00
B64: Лук репчатый | D64: 14.64 | E64: 12.30
B65: Хлеб пшеничный | D65: 11.00 | E65: 11.00
B66: вода питьевая | D66: 14.70 | E66: 14.70
B67: сухари панировочные | D67: 4.00 | E67: 4.00
B68: соль иодированная | D68: 0.70 | E68: 0.70
B69: масса полуфабриката | E69: 84.00
B70: масло растительное | D70: 0.80 | E70: 0.80
A71: Пюре Картофельное | C71: 140 | F71: 2.86 | G71: 4.48 | H71: 19.08 | I71: 128.10 | J71: 16.96 | K71: №339 СБ дошк 2016
B72: Картофель | D72: 159.60 | E72: 119.70
B73: Молоко | D73: 22.12 | E73: 21.00
B74: Масло сливочное | D74: 5.00 | E74: 5.00
B75: соль иодированная | D75: 0.52 | E75: 0.52
A76: Напиток из сухофруктов | C76: 180 | F76: 0.60 | G76: 0.08 | H76: 16.81 | I76: 72 | J76: 0.65 | K76: №394 Сб дошк 2016
B77: сухофрукты | D77: 15.30 | E77: 15.00
B78: Сахар | D78: 6.00 | E78: 6.00
B79: вода | D79: 183.00 | E79: 183.00
A80: Хлеб пшеничный | C80: 25 | D80: 25.00 | E80: 25.00 | F80: 1.90 | G80: 0.20 | H80: 12.30 | I80: 58.75 | J80: 0.00 | K80: табл 6 стр 134, Дели +, 2012
A81: Хлеб ржаной | C81: 45 | D81: 45.00 | E81: 45.00 | F81: 2.97 | G81: 0.54 | H81: 17.84 | I81: 89.19 | K81: табл 6 стр 144, Дели +, 2012
A82: Итого: | C82: =C81+C80+C76+C71+C61+180+10+C38 -> 710 | F82: =F81+F80+F76+F71+F61+F45+F38 -> 25.89 | G82: =G81+G80+G76+G71+G61+G45+G38 -> 25.24 | H82: 95.63 | I82: 725.62 | J82: 44.10
B83: ПОЛДНИК
A84: Булочка дорожная | C84: 50 | F84: 3.39 | G84: 6.98 | H84: 26.07 | I84: 181.00 | K84: №453 сб дошк 2016
B85: Мука пшеничная | D85: 30.50 | E85: 30.00
B86: мука пшеничная на подпыл | D86: 1.00 | E86: 1.00
B87: Сахар | D87: 6.00 | E87: 6.00
B88: Масло сливочное | D88: 6.50 | E88: 6.50
B89: соль иодированная | D89: 0.30 | E89: 0.30
B90: дрожжи сухие | D90: 0.20 | E90: 0.20
B91: вода | D91: 15.30 | E91: 15.30
B92: масса полуфабриката | E92: 57.00
B93: для крошки:
B94: мука пшеничная | D94: 1.20 | E94: 1.20
B95: масло сливочное | D95: 1.00 | E95: 1.00
B96: масса крошки | E96: 2.00
B97: масло растительное для смазки изделй | D97: 1.00 | E97: 1.00
A98: Чай с сахаром | C98: 180/6 | F98: 0.06 | G98: 0.02 | H98: 6.01 | I98: 23.94 | J98: 0.03 | K98: №410, 411 Дели 2016
B99: чай весовой | D99: 0.45 | E99: 0.45
B100: сахар | D100: 6.00 | E100: 6.00
B101: Вода | D101: 180.00 | E101: 180.00
A102: Фрукты свежие | C102: 100 | D102: 100 | E102: 100 | F102: 0.40 | G102: 0.40 | H102: 9.80 | I102: 47.00 | J102: 10.00 | K102: №386 СБ
A103: (яблоки,или апельсин, или банан,или мандарин ) | K103: дошк. 2016
A104: Итого: | C104: 336 | F104: =F102+F98+F84 -> 3.85 | G104: =G102+G98+G84 -> 7.40 | H104: =H102+H98+H84 -> 41.88 | I104: =I102+I98+I84 -> 251.94 | J104: =J102+J98+J84 -> 10.03
A105: ВСЕГО: | C105: =C31+C36+C82+C104 -> 1640 | F105: =F31+F36+F82+F104 -> 46.79 | G105: =G31+G36+G82+G104 -> 55.23 | H105: =H31+H36+H82+H104 -> 203.04 | I105: =I31+I36+I82+I104 -> 1511.96 | J105: =J31+J36+J82+J104 -> 57.49
A107: День 2- ой
A108: Наименование блюд и | C108: Масса | D108: Кол - во | E108: Кол - во | F108: Пищевые вещества | I108: Энергетическая | J108: Витамин | K108: Сборник
A109: продуктов | C109: порции | D109: (в гр ) | E109: (в гр ) | I109: ценность | K109: рецептур
D110: брутто | E110: нетто | F110: белки | G110: жиры | H110: угл-ды | I110: Ккал | J110: С
B111: ЗАВТРАК
A112: Каша полбяная молочная с маслом сливочным | C112: 180/3 | F112: 4.81 | G112: 7.85 | H112: 29.38 | I112: 207.32 | J112: 0.86 | K112: ТТК №1Д
B113: Крупа полбяная | D113: 22.50 | E113: 22.50
B114: Молоко | D114: 90.00 | E114: 90.00
B115: вода | D115: 68.00 | E115: 68.00
B116: Сахар | D116: 2.50 | E116: 2.50
B117: соль иодированная | D117: 0.50 | E117: 0.50
B118: Масло сливочное | D118: 3.00 | E118: 3.00
A119: Какао с молоком | C119: 180/6 | F119: 3.67 | G119: 3.19 | H119: 10.87 | I119: 90.78 | J119: 1.43 | K119: №416 Дели 2016
B120: Какао-порошок | D120: 2.00 | E120: 2.00
B121: Сахар | D121: 6.00 | E121: 6.00
B122: Молоко | D122: 110.00 | E122: 110.00
B123: Вода | D123: 80.00 | E123: 80.00
A124: Бутерброд с маслом сливочным | C124: 30/5 | F124: 2.29 | G124: 4.50 | H124: 15.49 | I124: 111.68 | K124: №1 Дели 2010
B125: Батон нарезной | D125: 30.00 | E125: 30.00
B126: Масло сливочное | D126: 5.00 | E126: 5.00
A127: Итого: | C127: 404 | F127: =SUM(F112:F126) -> 10.77 | G127: =SUM(G112:G126) -> 15.54 | H127: =SUM(H112:H126) -> 55.74 | I127: =SUM(I112:I126) -> 409.78 | J127: =SUM(J112:J126) -> 2.29
B128: 2 - ой ЗАВТРАК
A129: Сок (нектар) разливной | C129: 200 | D129: 200 | E129: 200 | F129: 1.00 | H129: 20.20 | I129: 84.44 | J129: 4.00 | K129: №418 Дели 2016
A130: Итого: | C130: 200 | F130: =F129 -> 1.00 | G130: =G129 -> 0.00 | H130: =H129 -> 20.20 | I130: =I129 -> 84.44 | J130: =J129 -> 4.00
B131: ОБЕД
A132: Томаты свежие порционно | C132: 50 | F132: 0.55 | G132: 0.1 | H132: 1.9 | I132: 11 | J132: 8.75 | K132: №71, сб шк 2017
B133: томаты свежие | D133: 51 | E133: 50
A134: Борщ со свежей капустой, с картофелем на курином бульоне, со сметаной | C134: 180/7 | F134: 1.50 | G134: 4.77 | H134: 8.12 | I134: 87.64 | J134: 7.71 | K134: №63, сб дошк 2016
B135: Капуста свежая | D135: 18.75 | E135: 15.00
B136: Картофель | D136: 19.95 | E136: 15.00
B137: Морковь | D137: 12.50 | E137: 10.00
B138: Лук репчатый | D138: 9.60 | E138: 8.00
B139: Свекла | D139: 38.40 | E139: 30.00
B140: Сахар | D140: 1.80 | E140: 1.80
B141: Томат-паста | D141: 1.00 | E141: 1.00
B142: Масло растительное | D142: 3.60 | E142: 3.60
B143: соль иодированная | D143: 0.80 | E143: 0.80
B144: Бульон | D144: 140.00 | E144: 140.00
B145: Сметана | D145: 7.00 | E145: 7.00
A146: Плов из отварной птицы | C146: 200 | F146: 11.19 | G146: 10.93 | H146: 31.80 | I146: 282.55 | J146: 0.18 | K146: №321 сб дошк 2016
B147: цыплята-бройлеры с/м | D147: 78.00 | E147: 73.6
B148: масса отварной птицы | E148: 32.0
B149: масло сливочное | D149: 8.0 | E149: 8.0
B150: Лук репчатый | D150: 11.9 | E150: 10.00
B151: Морковь | D151: 16.3 | E151: 13.00
B152: Крупа рисовая | D152: 55.0 | E152: 55.0
B153: вода | D153: 86.0 | E153: 86.0
B154: соль иодированная | D154: 0.8 | E154: 0.8
B155: масса гарнира | E155: 168.0
A156: Компот из свежих яблок | C156: 180 | F156: 0.14 | G156: 0.14 | H156: 25.09 | I156: 103.14 | J156: 0.81 | K156: №342 сб шк 2017
B157: яблоки свежие | D157: 34.00 | E157: 30.00
B158: сахар | D158: 6.00 | E158: 6.00
B159: вода | D159: 183.00 | E159: 183.00
A160: Хлеб пшеничный | C160: 25 | D160: 25.00 | E160: 25.00 | F160: 1.90 | G160: 0.20 | H160: 12.30 | I160: 58.75 | J160: 0.00 | K160: табл 6 стр 134, Дели +, 2012
A161: Хлеб ржаной | C161: 45 | D161: 45.00 | E161: 45.00 | F161: 2.97 | G161: 0.54 | H161: 17.84 | I161: 89.19 | K161: табл 6 стр 144, Дели +, 2012
A162: Итого: | C162: =C161+C160+C156+C146+187+C132 -> 687 | F162: =F161+F160+F156+F146+F134+F132 -> 18.25 | G162: =G161+G160+G156+G146+G134+G132 -> 16.68 | H162: 97.05 | I162: 632.27 | J162: 17.45
B163: ПОЛДНИК
A164: Запеканка творожная с молоком сгущенным | C164: 130/20 | F164: 24.20 | G164: 20.06 | H164: 32.78 | I164: 408.20 | J164: 0.54 | K164: №251, сб дошк 2016
B165: Творог | D165: 121.55 | E165: 119.20
B166: Крупа манная | D166: 7.80 | E166: 7.80
B167: Яйцо | D167: 6.50 | E167: 5.42
B168: Сахар | D168: 10.40 | E168: 10.40
B169: Сметана | D169: 5.20 | E169: 5.20
B170: Масло сливочное | D170: 5.20 | E170: 5.20
B171: Сухари панировочные | D171: 5.20 | E171: 5.20
B172: соль иодированная | D172: 0.65 | E172: 0.65
B173: молоко сгущенное | D173: 20.40 | E173: 20.00
A174: Чай с сахаром и лимоном | C174: 180/6/7 | F174: 0.13 | G174: 0.03 | H174: 6.23 | I174: 26.48 | J174: 2.83 | K174: №412 Дели 2016
B175: чай весовой | D175: 0.45 | E175: 0.45
B176: Сахар | D176: 6.00 | E176: 6.00
B177: лимон | D177: 8.00 | E177: 7.00
B178: Вода | D178: 180.00 | E178: 180.00
A179: Итого: | C179: 343 | F179: =F174+F164 -> 24.33 | G179: =G174+G164 -> 20.09 | H179: =H174+H164 -> 39.01 | I179: =I174+I164 -> 434.68 | J179: =J174+J164 -> 3.37
A180: ВСЕГО: | C180: =C127+C130+C162+C179 -> 1634 | F180: =F127+F130+F162+F179 -> 54.35 | G180: =G127+G130+G162+G179 -> 52.31 | H180: =H127+H130+H162+H179 -> 212.00 | I180: =I127+I130+I162+I179 -> 1561.17 | J180: =J127+J130+J162+J179 -> 27.11
A182: День 3 - ий
A183: Наименование блюд и | C183: Масса | D183: Кол - во | E183: Кол - во | F183: Пищевые вещества | I183: Энергетическая | J183: Витамин | K183: Сборник
A184: продуктов | C184: порции | D184: (в гр ) | E184: (в гр ) | I184: ценность | K184: рецептур
D185: брутто | E185: нетто | F185: белки | G185: жиры | H185: угл-ды | I185: Ккал | J185: С
B186: ЗАВТРАК
A187: Каша ячневая молочная с маслом сливочным | C187: 180/5 | F187: 6.06 | G187: 6.99 | H187: 30.07 | I187: 228.00 | K187: ТТК №10Д
B188: Крупа ячневая | D188: 22.50 | E188: 22.50
B189: Молоко | D189: 90.00 | E189: 90.00
B190: Вода | D190: 68.00 | E190: 68.00
B191: Сахар | D191: 2.50 | E191: 2.50
B192: соль иодированная | D192: 0.50 | E192: 0.50
B193: Масло сливочное | D193: 5.00 | E193: 5.00
A194: Чай с молоком, сахаром | C194: 180/6 | F194: 3.03 | G194: 2.40 | H194: 10.48 | I194: 75.76 | J194: 1.38 | K194: №413 сб дошк 2016
B195: чай весовой | D195: 0.45 | E195: 0.45
B196: Сахар | D196: 6 | E196: 6
B197: Молоко | D197: 92 | E197: 90
B198: Вода | D198: 90 | E198: 90
A199: Бутерброд с маслом сливочным | C199: 30/5 | F199: 2.29 | G199: 4.50 | H199: 15.49 | I199: 111.68 | K199: №1 Дели 2010
B200: Батон нарезной | D200: 30.00 | E200: 30.00
B201: Масло сливочное | D201: 5.00 | E201: 5.00
A202: Итого: | C202: 406 | F202: =F199+F194+F187 -> 11.38 | G202: =G199+G194+G187 -> 13.89 | H202: =H199+H194+H187 -> 56.04 | I202: =I199+I194+I187 -> 415.44 | J202: =J199+J194+J187 -> 1.38
B203: 2 - ой ЗАВТРАК
A204: Кисломолочный напиток | C204: 180 | F204: 5.22 | G204: 4.50 | H204: 7.56 | I204: 92.00 | J204: 0.45 | K204: №420 СБ дошк 2016
... 722 more rows

Sheet Меню РОТАЦИЯ (hidden)
A1: МЕНЮ-РОТАЦИЯ 8-10,5ч с УП (10 дн)
A2: День 1 - ый | B2: День 2- ой | C2: День 3 - ий | D2: День 4 - ый | E2: День 5 - ый
A3: Наименование блюд и продуктов | B3: Наименование блюд и продуктов | C3: Наименование блюд и продуктов | D3: Наименование блюд и продуктов | E3: Наименование блюд и продуктов
A4: ЗАВТРАК
A5: Каша "Дружба" молочная с маслом сливочным | B5: Каша полбяная молочная с маслом сливочным | C5: Каша ячневая молочная с маслом сливочным | D5: Каша геркулесовая молочная с маслом сливочным | E5: Суп молочный со звездочками
A6: Кофейный напиток с молоком | B6: Какао с молоком | C6: Чай с молоком,сахаром | D6: Кофейный напиток с молоком | E6: Какао с молоком
A7: Бутерброд с сыром, маслом сливочным | B7: Бутерброд с маслом сливочным | C7: Бутерброд с маслом сливочным | D7: Бутерброд с сыром, маслом сливочным | E7: Бутерброд с маслом сливочным
A8: Итого: | B8: Итого: | C8: Итого: | D8: Итого: | E8: Итого:
A9: 2 - ой ЗАВТРАК
A10: Кисломолочный напиток с сахаром (кефир) | B10: Сок в инд упаковке/разливной | C10: Кисломолочный напиток (катык) | D10: Сок в инд упаковке/разливной | E10: Кисломолочный напиток с сахаром (кефир)
A11: Итого: | B11: Итого: | C11: Итого: | D11: Итого: | E11: Итого:
A12: ОБЕД
A13: Салат из свежей капусты с морковью | B13: Помидоры свежие порционно | C13: Салат из моркови (молодой урожай) | D13: Огурцы свежие порционно | E13: Салат из отварной свеклы с маслом растительным
A14: Суп вермишелевый с картофелем с мясными фрикадельками | B14: Борщ со свежей капустой, картофелем на курином бульоне, со сметаной | C14: Суп картофельный с пшенной крупой на бульоне из индейки, с мясом индейки | D14: Суп гороховый с картофелем, на курином бульоне | E14: Рассольник домашний, с мясными фрикадельками, и со сметаной
A15: Котлеты рубленые из говядины | B15: Плов из отварной птицы | C15: Биточки рубленые из рыбы с овощами | D15: Фрикадельки из птицы | E15: Запеканка картофельная с мясом со сметанным соусом
A16: Пюре Картофельное | C16: Макаронные изделия отварные с маслом сливочным | D16: Овощное рагу
A17: Напиток из сухофруктов | B17: Компот из свежих яблок | C17: Кисель | D17: Компот из урюка | E17: Компот из изюма и яблок
A18: Хлеб пшеничный | B18: Хлеб пшеничный | C18: Хлеб пшеничный | D18: Хлеб пшеничный
A19: Хлеб ржаной | B19: Хлеб ржаной | C19: Хлеб ржаной | D19: Хлеб ржаной | E19: Хлеб ржаной
A20: Итого: | B20: Итого: | C20: Итого: | D20: Итого: | E20: Итого:
A21: ПОЛДНИК
A22: Булочка дорожная | B22: Запеканка творожная с молоком сгущенным | C22: Эч-почмак с мясным фаршем | D22: Омлет натуральный | E22: Ватрушка королевская
A23: Чай с сахаром | B23: Чай с сахаром и лимоном | C23: Напиток из шиповника | D23: Чай с сахаром | E23: Чай с сахаром и лимоном
A24: Фрукты свежие (яблоки) | C24: Фрукты свежие (апельсин) | D24: Пряник
A27: День 6 - ый | B27: День 7- ой | C27: День 8 - ой | D27: День 9- ый | E27: День 10 - ый
A28: Наименование блюд и продуктов | B28: Наименование блюд и продуктов | C28: Наименование блюд и продуктов | D28: Наименование блюд и продуктов | E28: Наименование блюд и продуктов
A29: ЗАВТРАК
A30: Каша пшенная молочная с маслом сливочным | B30: Каша ячневая молочная с маслом сливочным | C30: Каша манная молочная с маслом сливочным | D30: Каша пшеничная молочная с маслом сливочным | E30: Каша Геркулесовая молочная с маслом сливочным
A31: Чай с молоком,сахаром | B31: Кофейный напиток с молоком | C31: Какао с молоком | D31: Чай с молоком,сахаром | E31: Кофейный напиток с молоком
A32: Бутерброд с сыром, маслом сливочным | B32: Бутерброд с маслом сливочным | C32: Бутерброд с маслом сливочным | D32: Бутерброд с сыром, с маслом сливочным | E32: Бутерброд с маслом сливочным
A33: Итого: | B33: Итого: | C33: Итого: | D33: Итого: | E33: Итого:
A34: 2 - ой ЗАВТРАК
A35: Сок в инд упаковке/разливной | B35: Кисломолочный напиток (ряженка) | C35: Сок в инд упаковке/разливной | D35: Кисломолочный напиток (катык) | E35: Сок в инд упаковке/разливной
A36: Итого: | B36: Итого: | C36: Итого: | D36: Итого: | E36: Итого:
A37: ОБЕД
A38: Салат из свежей капусты с морковью | B38: Огурцы свежие порционно | C38: Салат из отварной свеклы с маслом растительным | D38: Салат из моркови (молодой урожай) | E38: Огурцы свежие порционно
A39: Суп из овощей на курином бульоне, с мясом птицы, со сметаной | B39: Суп картофельный с клецками на курином бульоне | C39: Щи со свежей капустой с картофелем, с мясными фрикадельками,со сметаной | D39: Рассольник ленинградский на бульоне из индейки, со сметаной | E39: Суп-лапша домашняя на курином бульоне
A40: Котлеты рыбные | B40: Тефтели куриные запеченные в сметанно-томатном соусе | C40: Биточки рубленые из рыбы | D40: Гуляш из отварной индейки | E40: Биточки "Домашние"
A41: Рис отварной рассыпчатый с маслом сливочным | B41: Каша гречневая рассыпчатая с овощами с маслом сливочным | C41: Пюре Картофельное | D41: Макаронные изделия отварные | E41: Рис отварной рассыпчатый с маслом сливочным
A42: Напиток из сухофруктов | B42: Компот из свежих яблок | C42: Компот из урюка | D42: Кисель | E42: Компот из изюма и яблок
A43: Фрукты свежие (яблоки) | B43: Хлеб ржаной | C43: Хлеб ржаной | D43: Хлеб ржаной | E43: Хлеб ржаной
A44: Хлеб ржаной
A45: Итого: | B45: Итого: | C45: Итого: | D45: Итого: | E45: Итого:
A46: УПЛОТНЕННЫЙ ПОЛДНИК
A47: Макаронные изделия с сыром | B47: Гребешок с повидлом | C47: Омлет натуральный | D47: Слойка сладкая | E47: Жаркое из индейки + огурцы соленые доп гарнир (отд строкой)
A48: Чай с мармеладом | B48: Напиток из шиповника | C48: Чай с сахаром | D48: Чай с сахаром и лимоном | E48: Напиток из шиповника
C49: Кондитерское изделие (печенье) | E49: Кондитерское изделие (печенье)
A50: Хлеб пшеничный | B50: Фрукты свежие (апельсин) | C50: Хлеб пшеничный | D50: Фрукты свежие (яблоки) | E50: Хлеб пшеничный
